fUST/lending_fUST_20250128
["ID","MTS","AMOUNT","RATE_DAILY","PERIOD"]
[350656481,1738036232832,-500.0,0.00016575,2]
[350656482,1738036232842,-500.0,0.00016575,2]
[350656483,1738036232852,-266.72349039,0.00016575,2]
[350656484,1738036232865,-233.27650961,0.00016575,2]
[350656485,1738036232875,-385.38676769,0.00016575,2]
[350656486,1738036232887,-114.61323231,0.00016575,2]
[350656487,1738036232897,-500.0,0.00016575,2]
[350656488,1738036232908,-500.0,0.00016575,2]
[350656489,1738036232918,-500.0,0.00016575,2]
[350656490,1738036232929,-500.0,0.00016575,2]
[350656491,1738036232939,-500.0,0.00016575,2]
[350656492,1738036232950,-500.0,0.00016575,2]
[350656493,1738036232960,-500.0,0.00016575,2]
[350656494,1738036232970,-500.0,0.00016575,2]
[350656495,1738036232981,-500.0,0.00016575,2]
[350656496,1738036232992,-500.0,0.00016575,2]
[350656497,1738036233002,-500.0,0.00016575,2]
[350656498,1738036233012,-500.0,0.00016575,2]
[350656499,1738036233023,-151.72872164,0.00016579,2]
[350656500,1738036233033,-500.0,0.00016589,2]
[350656501,1738036233043,-500.0,0.00016589,2]
[350656502,1738036233054,-500.0,0.00016589,2]
[350656503,1738036233065,-500.0,0.00016589,2]
[350656504,1738036233077,-402.3773098,0.00016589,2]
[350656505,1738036233087,-500.0,0.00016589,2]
[350656506,1738036233098,-500.0,0.00016589,2]
[350656507,1738036233109,-494.0,0.00016589,2]
[350656508,1738036233120,-500.0,0.00016589,2]
[350656509,1738036233131,-345.85210346,0.00016589,2]
[350656510,1738036233294,-200.0,0.00016589,2]
[350656511,1738036233305,-500.0,0.00016589,2]
[350656512,1738036233314,-500.0,0.00016589,2]
[350656513,1738036233324,-500.0,0.00016589,2]
[350656514,1738036233334,-500.0,0.00016589,2]
[350656515,1738036233343,-500.0,0.00016589,2]
[350656516,1738036233353,-504.31827618,0.00016589,2]
[350656517,1738036233363,-514.73055644,0.00016589,2]
[350656518,1738036233373,-500.0,0.00016589,2]
[350656519,1738036233383,-500.0,0.00016589,2]
[350656520,1738036233392,-500.0,0.00016589,2]
[350656521,1738036233402,-500.0,0.00016589,2]
[350656522,1738036233411,-500.0,0.00016589,2]
[350656523,1738036233420,-500.0,0.00016589,2]
[350656524,1738036233429,-500.0,0.00016589,2]
[350656525,1738036233440,-500.0,0.00016589,2]
[350656526,1738036233450,-500.0,0.00016589,2]
[350656527,1738036233459,-500.0,0.00016589,2]
[350656528,1738036233468,-500.0,0.00016589,2]
[350656529,1738036233478,-504.16045772,0.00016589,2]
[350656530,1738036233488,-500.0,0.00016589,2]
[350656531,1738036233499,-368.39428436,0.00016589,2]
[350656532,1738036233509,-500.0,0.00016589,2]
[350656533,1738036233518,-500.0,0.00016589,2]
[350656534,1738036233528,-500.0,0.00016589,2]
[350656535,1738036233538,-500.0,0.00016589,2]
[350656536,1738036233548,-507.74582983,0.00016589,2]
[350656537,1738036233557,-500.0,0.00016589,2]
[350656538,1738036233566,-514.00490056,0.00016589,2]
[350656539,1738036233577,-500.0,0.00016589,2]
[350656540,1738036233587,-512.66965402,0.00016589,2]
[350656541,1738036233596,-500.0,0.00016589,2]
[350656542,1738036233606,-500.0,0.00016712,2]
[350656543,1738036233615,-500.0,0.00016712,2]
[350656544,1738036233625,-500.0,0.00016712,2]
[350656545,1738036233634,-500.0,0.00016712,2]
[350656546,1738036233643,-500.0,0.00016712,2]
[350656547,1738036233652,-500.0,0.00016712,2]
[350656548,1738036233661,-522.22422803,0.00016712,2]
[350656549,1738036233671,-500.0,0.00016712,2]
[350656550,1738036233680,-500.0,0.00016712,2]
[350656551,1738036233689,-191.92,0.00016712,2]
[350656552,1738036233698,-455.94870795,0.00016726,2]
[350656553,1738036233707,-500.0,0.00016726,2]
[350656554,1738036233717,-547.68,0.00016726,2]
[350656555,1738036233728,-223.4374411,0.00016822,2]
[350656556,1738036233737,-639.24,0.00016849,2]
[350656557,1738036233747,-500.0,0.00016849,2]
[350656558,1738036233757,-500.0,0.00016849,2]
[350656559,1738036233767,-500.0,0.00016849,2]
[350656560,1738036233777,-500.0,0.00016849,2]
[350656561,1738036233787,-573.98179781,0.00016849,2]
[350656562,1738036233797,-500.0,0.00016981,2]
[350656563,1738036233807,-500.0,0.00016986,2]
[350656564,1738036233816,-500.0,0.00016986,2]
[350656565,1738036233825,-500.0,0.00016986,2]
[350656566,1738036233835,-155.42433922,0.00017063,2]
[350656567,1738036233844,-364.16150792,0.00017123,2]
[350656568,1738036233853,-500.0,0.00017123,2]
[350656569,1738036233863,-500.0,0.00017123,2]
[350656570,1738036233872,-500.0,0.00017163,2]
[350656571,1738036233882,-173.61529608,0.00017163,2]
[350656584,1738036239068,-500.0,0.00016438,2]
[350656585,1738036239078,-500.0,0.00016438,2]
[350656586,1738036239088,-500.0,0.00016438,2]
[350656587,1738036239098,-500.0,0.00016575,2]
[350656588,1738036239108,-500.0,0.00016575,2]
[350656589,1738036239118,-500.0,0.00016575,2]
[350656590,1738036239128,-500.0,0.00016589,2]
[350656591,1738036239137,-500.0,0.00016589,2]
[350656592,1738036239147,-500.0,0.00016712,2]
[350656593,1738036239156,-500.0,0.00016712,2]
[350656594,1738036239166,-480.0,0.00016726,2]
[350656596,1738036239176,-500.0,0.00016849,2]
[350656597,1738036239186,-500.0,0.00016849,2]
[350656598,1738036239199,-594.52926905,0.00016986,2]
[350656599,1738036239209,-500.0,0.00016986,2]
[350656600,1738036239219,-500.0,0.00017162,2]
[350656601,1738036239228,-500.0,0.00017162,2]
[350656602,1738036239237,-268.2324444,0.00017162,2]
[350656603,1738036239247,-284.10605221,0.00017162,2]
[350656604,1738036239256,-467.79596029,0.00017162,2]
[350656605,1738036239266,-500.0,0.00017162,2]
[350656606,1738036239275,-500.0,0.00017162,2]
[350656607,1738036239285,-519.06120247,0.00017162,2]
[350656608,1738036239294,-500.0,0.00017162,2]
[350656609,1738036239304,-500.0,0.00017162,2]
[350656610,1738036239313,-500.0,0.00017162,2]
[350656611,1738036239323,-500.0,0.00017162,2]
[350656612,1738036239332,-478.55993161,0.00017162,2]
[350656613,1738036239342,-380.08999096,0.00017162,2]
[350656614,1738036239351,-500.0,0.00017162,2]
[350656615,1738036239361,-500.0,0.00017162,2]
[350656616,1738036239370,-500.0,0.00017162,2]
[350656617,1738036239380,-500.0,0.00017162,2]
[350656619,1738036239389,-500.0,0.00017162,2]
[350656621,1738036239399,-500.0,0.00017162,2]
[350656622,1738036239408,-500.0,0.00017162,2]
[350656624,1738036239417,-500.0,0.00017162,2]
[350656625,1738036239427,-500.0,0.00017162,2]
[350656626,1738036239437,-500.0,0.00017162,2]
[350656627,1738036239446,-500.0,0.00017162,2]
[350656628,1738036239455,-500.0,0.00017162,2]
[350656629,1738036239464,-500.0,0.00017162,2]
[350656630,1738036239474,-500.0,0.00017162,2]
[350656631,1738036239484,-500.0,0.00017162,2]
[350656632,1738036239493,-500.0,0.00017162,2]
[350656633,1738036239506,-500.0,0.00017162,2]
[350656634,1738036239516,-500.0,0.00017162,2]
[350656635,1738036239526,-500.0,0.00017162,2]
[350656636,1738036239536,-500.0,0.00017162,2]
[350656638,1738036239545,-500.0,0.00017162,2]
[350656640,1738036239554,-500.0,0.00017162,2]
[350656642,1738036239563,-500.0,0.00017162,2]
[350656644,1738036239573,-500.0,0.00017162,2]
[350656645,1738036239582,-500.0,0.00017162,2]
[350656647,1738036239591,-500.0,0.00017162,2]
[350656649,1738036239601,-500.0,0.00017162,2]
[350656652,1738036239611,-500.0,0.00017162,2]
[350656654,1738036239620,-500.0,0.00017162,2]
[350656656,1738036239630,-544.10869155,0.00017162,2]
[350656658,1738036239639,-500.0,0.00017162,2]
[350656660,1738036239648,-500.0,0.00017162,2]
[350656662,1738036239657,-500.0,0.00017162,2]
[350656663,1738036239667,-500.0,0.00017162,2]
[350656665,1738036239676,-500.0,0.00017162,2]
[350656667,1738036239685,-326.38470392,0.00017163,2]
[350656669,1738036239695,-500.0,0.00017163,2]
[350656671,1738036239704,-500.0,0.00017163,2]
[350656673,1738036239713,-500.0,0.00017163,2]
[350656675,1738036239723,-636.01,0.00017163,2]
[350656677,1738036239732,-500.0,0.00017163,2]
[350656679,1738036239742,-500.0,0.00017163,2]
[350656681,1738036239752,-505.47232362,0.00017163,2]
[350656683,1738036239761,-500.0,0.00017163,2]
[350656685,1738036239771,-609.35,0.00017163,2]
[350656687,1738036239780,-500.0,0.00017163,2]
[350656689,1738036239790,-500.0,0.00017163,2]
[350656692,1738036239799,-500.0,0.00017163,2]
[350656694,1738036239808,-500.0,0.00017163,2]
[350656695,1738036239818,-500.0,0.00017163,2]
[350656697,1738036239827,-500.0,0.00017163,2]
[350656698,1738036239836,-500.0,0.00017163,2]
[350656699,1738036239845,-500.0,0.00017163,2]
[350656700,1738036239854,-1098.67,0.00017163,2]
[350656701,1738036239863,-500.0,0.00017163,2]
[350656702,1738036239873,-500.0,0.00017163,2]
[350656703,1738036239883,-500.0,0.00017163,2]
[350656704,1738036239892,-500.86911894,0.00017163,2]
[350656705,1738036239901,-906.26,0.00017163,2]
[350656706,1738036239910,-583.49,0.00017163,2]
[350656707,1738036239920,-629.89997,0.00017164,2]
[350656708,1738036239928,-509.11652345,0.00017164,2]
[350656709,1738036239938,-507.83338909,0.00017164,2]
[350656710,1738036239947,-498.23469452,0.00017164,2]
[350656711,1738036239957,-500.0,0.00017164,2]
[350656712,1738036239966,-500.0,0.00017164,2]
[350656713,1738036239975,-500.0,0.00017164,2]
[350656714,1738036239985,-400.31430514,0.00017164,2]
[350656715,1738036239994,-500.0,0.00017164,2]
[350656716,1738036240006,-500.0,0.00017164,2]
[350656717,1738036240015,-500.0,0.00017164,2]
[350656718,1738036240023,-500.0,0.00017164,2]
[350656719,1738036240032,-500.0,0.00017164,2]
[350656720,1738036240041,-500.0,0.00017164,2]
[350656721,1738036240050,-500.0,0.00017164,2]
[350656722,1738036240059,-500.0,0.00017164,2]
[350656723,1738036240068,-500.0,0.00017164,2]
[350656724,1738036240077,-500.0,0.00017164,2]
[350656725,1738036240086,-500.0,0.00017164,2]
[350656726,1738036240095,-351.36025391,0.00017164,2]
[350656727,1738036240104,-500.0,0.00017164,2]
[350656728,1738036240113,-500.0,0.00017164,2]
[350656729,1738036240122,-500.0,0.00017164,2]
[350656730,1738036240131,-500.0,0.00017164,2]
[350656731,1738036240140,-500.0,0.00017164,2]
[350656732,1738036240149,-500.0,0.00017164,2]
[350656733,1738036240158,-500.0,0.00017164,2]
[350656734,1738036240168,-500.0,0.00017164,2]
[350656735,1738036240180,-500.0,0.00017164,2]
[350656736,1738036240189,-500.0,0.00017164,2]
[350656737,1738036240198,-500.0,0.00017164,2]
[350656738,1738036240207,-500.0,0.00017164,2]
[350656739,1738036240217,-502.2841089,0.00017164,2]
[350656740,1738036240226,-501.05888269,0.00017164,2]
[350656741,1738036240235,-500.0,0.0001726,2]
[350656742,1738036240244,-500.0,0.0001726,2]
[350656743,1738036240254,-500.0,0.000173,2]
[350656744,1738036240264,-500.0,0.000173,2]
[350656745,1738036240273,-500.0,0.000173,2]
[350656746,1738036240283,-1098.67,0.000173,2]
[350656747,1738036240292,-500.0,0.000173,2]
[350656748,1738036240301,-500.0,0.000173,2]
[350656749,1738036240311,-583.49,0.000173,2]
[350656750,1738036240320,-500.0,0.00017301,2]
[350656751,1738036240330,-500.0,0.00017301,2]
[350656752,1738036240339,-500.0,0.00017301,2]
[350656753,1738036240348,-500.0,0.00017397,2]
[350656754,1738036240358,-500.0,0.00017397,2]
[350656755,1738036240367,-500.0,0.00017437,2]
[350656756,1738036240376,-500.0,0.00017437,2]
[350656757,1738036240385,-1098.67,0.00017437,2]
[350656758,1738036240394,-500.0,0.00017437,2]
[350656759,1738036240403,-500.0,0.00017437,2]
[350656760,1738036240413,-583.49,0.00017437,2]
[350656761,1738036240422,-500.0,0.00017438,2]
[350656762,1738036240431,-500.0,0.00017534,2]
[350656763,1738036240440,-500.0,0.00017534,2]
[350656764,1738036240450,-906.26,0.00017573,2]
[350656765,1738036240459,-500.0,0.00017574,2]
[350656766,1738036240468,-1098.67,0.00017574,2]
[350656767,1738036240477,-376.66122085,0.00017574,2]
[350656768,1738036240487,-500.0,0.00017574,2]
[350656769,1738036240497,-583.49,0.00017574,2]
[350656770,1738036240507,-500.0,0.00017671,2]
[350656771,1738036240517,-500.0,0.00017671,2]
[350656772,1738036240526,-500.0,0.00017711,2]
[350656773,1738036240536,-1098.67,0.00017711,2]
[350656774,1738036240545,-500.0,0.00017711,2]
[350656775,1738036240555,-583.49,0.00017711,2]
[350656776,1738036240564,-500.0,0.00017808,2]
[350656777,1738036240573,-500.0,0.00017808,2]
[350656778,1738036240583,-500.0,0.00017848,2]
[350656779,1738036240592,-1098.67,0.00017848,2]
[350656780,1738036240601,-216.9,0.00017848,2]
[350656781,1738036240611,-583.49,0.00017848,2]
[350656782,1738036240620,-500.0,0.00017945,2]
[350656783,1738036240629,-500.0,0.00017945,2]
[350656784,1738036240740,-305.0,0.00017963,2]
[350656785,1738036240751,-500.0,0.00017985,2]
[350656786,1738036240760,-1098.67,0.00017985,2]
[350656787,1738036240770,-583.49,0.00017985,2]
[350656788,1738036240779,-500.0,0.00018082,2]
[350656789,1738036240789,-500.0,0.00018082,2]
[350656790,1738036240798,-500.0,0.00018122,2]
[350656791,1738036240808,-1098.67,0.00018122,2]
[350656792,1738036240828,-583.49,0.00018122,2]
[350656793,1738036240840,-150.23,0.00018219,2]
[350656794,1738036240851,-500.0,0.00018219,2]
[350656795,1738036240861,-500.0,0.00018259,2]
[350656796,1738036240872,-1098.67,0.00018259,2]
[350656797,1738036240882,-583.49,0.00018259,2]
[350656798,1738036240893,-500.0,0.00018356,2]
[350656799,1738036240903,-500.0,0.00018396,2]
[350656800,1738036240913,-1098.67,0.00018396,2]
[350656801,1738036240924,-583.49,0.00018396,2]
[350656802,1738036240934,-500.0,0.00018493,2]
[350656803,1738036240944,-500.0,0.00018533,2]
[350656804,1738036240954,-1098.67,0.00018533,2]
[350656805,1738036240964,-258.34891584,0.00018533,2]
[350656866,1738036243046,-500.0,0.00016589,2]
[350656934,1738036438609,456.85850471,0.0001515,2]
[350656940,1738036577273,275.92335055,0.0001515,2]
[350656949,1738036726468,3454.85046554,0.00015081,2]
[350656950,1738036729250,12923.0266843,0.00014935,2]
[350656951,1738036985043,194.4848835,0.00014724,2]
[350656952,1738037153050,356.023444,0.00015027,2]
[350656954,1738037194564,218.910515,0.00013973,2]
[350656955,1738037205847,153.0,0.00015055,2]
[350656956,1738037206066,153.0,0.00015055,2]
[350656957,1738037206447,153.0,0.00015055,2]
[350656958,1738037206670,153.0,0.00015055,2]
[350656959,1738037207039,153.0,0.00015055,2]
[350656960,1738037211791,153.0,0.00015054,2]
[350656961,1738037212001,153.0,0.00015054,2]
[350656962,1738037212217,153.0,0.00015054,2]
[350656963,1738037212440,153.0,0.00015054,2]
[350656964,1738037212658,153.0,0.00015054,2]
[350656965,1738037231517,372.58659142,0.0001515,2]
[350656966,1738037235142,-211.67933087,0.0001517,2]
[350656967,1738037235163,-150.24525927,0.000152,2]
[350656968,1738037235184,-197.09762083,0.0001573,2]
[350656969,1738037235203,-324.91391591,0.00015732,2]
[350656970,1738037235223,-247.59804634,0.00016338,2]
[350656971,1738037235242,-247.59804631,0.00016376,2]
[350656972,1738037235262,-247.59804631,0.00016414,2]
[350656973,1738037235287,-6862.90829873,0.00016421,2]
[350656974,1738037235308,-300.0,0.00016427,2]
[350656975,1738037235328,-43.53116623,0.00016428,2]
[350656976,1738037241217,-109.04883377,0.00016428,2]
[350656977,1738037241237,-152.58,0.00016428,2]
[350656978,1738037241256,-152.58,0.00016428,2]
[350656979,1738037241276,-126.11360703,0.00016428,2]
[350656980,1738037246092,-667.92389195,0.00016337,2]
[350656981,1738037246116,-26.46639297,0.00016428,2]
[350656982,1738037246136,-152.58,0.00016428,2]
[350656983,1738037246155,-57.19812533,0.00016428,2]
[350656984,1738037254093,-95.38187467,0.00016428,2]
[350656985,1738037254114,-152.58,0.00016428,2]
[350656986,1738037254136,-152.58,0.00016428,2]
[350656987,1738037254156,-152.58,0.00016428,2]
[350656988,1738037254177,-858.13603201,0.00016428,2]
[350656989,1738037254199,-152.58,0.00016428,2]
[350656990,1738037254225,-500.0,0.00016437,2]
[350656991,1738037254247,-325.09766889,0.00016437,2]
[350656992,1738037254271,-500.0,0.00016437,2]
[350656993,1738037254294,-500.0,0.00016437,2]
[350656994,1738037254315,-134.00806925,0.00016437,2]
[350656995,1738037269174,153.0,0.00015048,2]
[350656996,1738037269400,153.0,0.00015048,2]
[350656997,1738037269629,153.0,0.00015048,2]
[350656998,1738037269855,153.0,0.00015048,2]
[350656999,1738037270080,153.0,0.00015048,2]
[350657000,1738037275553,153.0,0.00015047,2]
[350657001,1738037275791,153.0,0.00015047,2]
[350657002,1738037276007,153.0,0.00015047,2]
[350657003,1738037276263,153.0,0.00015047,2]
[350657004,1738037276591,153.0,0.00015047,2]
[350657005,1738037276812,153.0,0.00015047,2]
[350657006,1738037324831,153.0,0.00015042,2]
[350657007,1738037325033,153.0,0.00015042,2]
[350657008,1738037325241,153.0,0.00015042,2]
[350657009,1738037325457,153.0,0.00015042,2]
[350657010,1738037330531,153.0,0.00015042,2]
[350657011,1738037330748,153.0,0.00015042,2]
[350657012,1738037330997,153.0,0.00015042,2]
[350657013,1738037331820,153.0,0.00015042,2]
[350657014,1738037332068,153.0,0.00015042,2]
[350657015,1738037388564,153.0,0.00015036,2]
[350657016,1738037388865,153.0,0.00015036,2]
[350657017,1738037389098,153.0,0.00015036,2]
[350657018,1738037393281,153.0,0.00015035,2]
[350657019,1738037393497,153.0,0.00015035,2]
[350657020,1738037393719,153.0,0.00015035,2]
[350657021,1738037394153,153.0,0.00015035,2]
[350657090,1738037432282,-300.0,0.00016436,2]
[350657092,1738037432292,-465.88724684,0.00016437,2]
[350657094,1738037432302,-500.0,0.00016437,2]
[350657096,1738037432312,-500.0,0.00016437,2]
[350657097,1738037432321,-500.0,0.00016437,2]
[350657098,1738037432331,-500.0,0.00016437,2]
[350657099,1738037432340,-500.0,0.00016437,2]
[350657100,1738037432350,-500.0,0.00016437,2]
[350657101,1738037432359,-605.14301797,0.00016437,2]
[350657102,1738037432369,-500.0,0.00016437,2]
[350657103,1738037432378,-500.0,0.00016437,2]
[350657104,1738037432387,-500.0,0.00016437,2]
[350657105,1738037432397,-500.0,0.00016437,2]
[350657106,1738037432407,-500.0,0.00016437,2]
[350657107,1738037432416,-500.0,0.00016437,2]
[350657108,1738037432425,-500.0,0.00016437,2]
[350657109,1738037432435,-500.0,0.00016437,2]
[350657110,1738037432445,-500.0,0.00016437,2]
[350657111,1738037432454,-500.0,0.00016437,2]
[350657112,1738037432464,-344.68936188,0.00016437,2]
[350657113,1738037432477,-155.31063812,0.00016437,2]
[350657114,1738037432486,-159.23628871,0.00016437,2]
[350657115,1738037432500,-340.76371129,0.00016437,2]
[350657116,1738037432510,-500.0,0.00016437,2]
[350657117,1738037432520,-500.0,0.00016437,2]
[350657118,1738037432536,-500.0,0.00016437,2]
[350657119,1738037432546,-500.0,0.00016437,2]
[350657120,1738037432556,-500.0,0.00016437,2]
[350657121,1738037432566,-500.0,0.00016437,2]
[350657122,1738037432577,-347.77525735,0.00016437,2]
[350657123,1738037432587,-500.0,0.00016437,2]
[350657124,1738037432598,-500.0,0.00016437,2]
[350657125,1738037432608,-433.0861397,0.00016437,2]
[350657126,1738037432618,-500.0,0.00016437,2]
[350657127,1738037432627,-500.0,0.00016437,2]
[350657128,1738037432637,-500.0,0.00016437,2]
[350657129,1738037432647,-500.0,0.00016437,2]
[350657130,1738037432657,-551.43017969,0.00016437,2]
[350657131,1738037432666,-500.0,0.00016437,2]
[350657132,1738037432676,-500.0,0.00016437,2]
[350657133,1738037432686,-500.0,0.00016437,2]
[350657134,1738037432697,-500.0,0.00016437,2]
[350657135,1738037432706,-500.0,0.00016437,2]
[350657136,1738037432716,-265.18557345,0.00016437,2]
[350657137,1738037432725,-500.0,0.00016437,2]
[350657138,1738037432735,-358.94849269,0.00016437,2]
[350657139,1738037432744,-500.0,0.00016437,2]
[350657140,1738037432754,-160.95157742,0.00016437,2]
[350657141,1738037432772,-500.0,0.00016438,2]
[350657142,1738037432786,-464.8857527,0.00016438,2]
[350657169,1738037437995,-36.12155751,0.00016438,2]
[350657170,1738037438008,-501.53615893,0.00016438,2]
[350657171,1738037438020,-500.0,0.00016438,2]
[350657172,1738037438030,-501.44721481,0.00016438,2]
[350657173,1738037438041,-294.85661184,0.00016438,2]
[350657180,1738037438639,-205.14338816,0.00016438,2]
[350657181,1738037438650,-186.2947946,0.00016438,2]
[350657182,1738037438661,-10.60040345,0.00016438,2]
[350657183,1738037438671,-500.0,0.00016438,2]
[350657184,1738037438813,-500.0,0.00016438,2]
[350657185,1738037438830,-500.0,0.00016438,2]
[350657186,1738037438840,-500.0,0.00016438,2]
[350657187,1738037438850,-500.0,0.00016438,2]
[350657188,1738037438859,-500.0,0.00016438,2]
[350657189,1738037438868,-500.0,0.00016438,2]
[350657190,1738037438878,-500.0,0.00016438,2]
[350657191,1738037438887,-510.05179015,0.00016438,2]
[350657192,1738037438896,-500.0,0.00016438,2]
[350657193,1738037438906,-502.36514913,0.00016438,2]
[350657194,1738037438915,-502.49242984,0.00016438,2]
[350657195,1738037438924,-418.81333209,0.00016438,2]
[350657196,1738037438933,-211.74367495,0.00016438,2]
[350657197,1738037438942,-500.0,0.00016438,2]
[350657198,1738037438951,-501.11119618,0.00016438,2]
[350657199,1738037438961,-500.0,0.00016438,2]
[350657200,1738037438970,-500.0,0.00016438,2]
[350657201,1738037438980,-500.96381523,0.00016438,2]
[350657202,1738037438989,-501.14171968,0.00016438,2]
[350657203,1738037438998,-500.0,0.00016438,2]
[350657204,1738037439010,-500.0,0.00016438,2]
[350657205,1738037439019,-500.0,0.00016438,2]
[350657206,1738037439028,-500.0,0.00016438,2]
[350657207,1738037439037,-500.0,0.00016438,2]
[350657208,1738037439047,-500.0,0.00016438,2]
[350657209,1738037439056,-505.04581881,0.00016438,2]
[350657210,1738037439065,-500.0,0.00016438,2]
[350657211,1738037439075,-500.0,0.00016438,2]
[350657212,1738037439084,-500.51604923,0.00016438,2]
[350657213,1738037439093,-500.0,0.00016438,2]
[350657214,1738037439103,-500.0,0.00016438,2]
[350657215,1738037439111,-500.0,0.00016438,2]
[350657216,1738037439121,-502.14687624,0.00016438,2]
[350657217,1738037439130,-339.37298378,0.00016438,2]
[350657218,1738037439139,-500.0,0.00016438,2]
[350657219,1738037439148,-500.0,0.00016438,2]
[350657220,1738037439157,-500.0,0.00016438,2]
[350657221,1738037439166,-500.0,0.00016438,2]
[350657222,1738037439175,-500.0,0.00016438,2]
[350657223,1738037439185,-500.55035209,0.00016438,2]
[350657224,1738037439194,-500.0,0.00016438,2]
[350657225,1738037439203,-200.0,0.00016438,2]
[350657226,1738037439212,-501.66372869,0.00016438,2]
[350657227,1738037439221,-500.38488935,0.00016438,2]
[350657228,1738037439230,-520.00426556,0.00016438,2]
[350657229,1738037439239,-500.0,0.00016438,2]
[350657230,1738037439248,-500.0,0.00016438,2]
[350657231,1738037439261,-500.0,0.00016438,2]
[350657232,1738037439271,-500.0,0.00016438,2]
[350657233,1738037439280,-501.21595339,0.00016438,2]
[350657234,1738037439290,-500.0,0.00016438,2]
[350657235,1738037439299,-500.49277588,0.00016438,2]
[350657236,1738037439309,-500.0,0.00016438,2]
[350657237,1738037439318,-500.0,0.00016438,2]
[350657238,1738037439327,-500.0,0.00016438,2]
[350657239,1738037439336,-502.41951343,0.00016438,2]
[350657240,1738037439346,-500.0,0.00016438,2]
[350657241,1738037439355,-500.0,0.00016438,2]
[350657242,1738037439364,-500.0,0.00016438,2]
[350657243,1738037439374,-501.72600221,0.00016438,2]
[350657244,1738037439383,-502.561634,0.00016438,2]
[350657245,1738037439392,-500.0,0.00016438,2]
[350657246,1738037439401,-500.0,0.00016438,2]
[350657247,1738037439410,-500.0,0.00016438,2]
[350657248,1738037439419,-119.55502471,0.00016438,2]
[350657364,1738037443007,-380.44497529,0.00016438,2]
[350657365,1738037443016,-500.0,0.00016438,2]
[350657366,1738037443025,-500.0,0.00016438,2]
[350657367,1738037443035,-500.0,0.00016438,2]
[350657368,1738037443045,-510.18574432,0.00016438,2]
[350657369,1738037443054,-500.0,0.00016438,2]
[350657370,1738037443063,-500.0,0.00016438,2]
[350657371,1738037443072,-500.0,0.00016438,2]
[350657372,1738037443082,-500.0,0.00016438,2]
[350657373,1738037443092,-500.0,0.00016438,2]
[350657374,1738037443101,-500.0,0.00016438,2]
[350657375,1738037443110,-500.0,0.00016438,2]
[350657376,1738037443120,-500.0,0.00016438,2]
[350657377,1738037443129,-500.0,0.00016438,2]
[350657378,1738037443138,-215.75602047,0.00016438,2]
[350657379,1738037443148,-500.0,0.00016438,2]
[350657380,1738037443157,-500.0,0.00016438,2]
[350657381,1738037443167,-500.0,0.00016438,2]
[350657382,1738037443177,-500.0,0.00016438,2]
[350657383,1738037443186,-503.08919752,0.00016438,2]
[350657384,1738037443196,-500.0,0.00016438,2]
[350657385,1738037443205,-500.0,0.00016438,2]